bitfinex-derivatives/quotes_SOLF0:USTF0_20260311
["timestamp","ask_amount","ask_price","bid_price","bid_amount"]
[1773248717442,10.361,86.844,86.795,4.25540547]
[1773248717639,0.96489491,86.861,86.795,4.25540547]
[1773248718448,10.362,86.837,86.795,4.25540547]
[1773248720143,6.18662096,86.88,86.795,4.25540547]
[1773248720144,10.363,86.828,86.795,4.25540547]
[1773248720842,10.364,86.821,86.776,4.42647026]
[1773248721241,10.364,86.821,86.77,6.18662096]
[1773248721242,1.06711213,86.846,86.751,4.42647026]
[1773248721444,1.09339235,86.844,86.751,4.42647026]
[1773248721744,1.09339235,86.844,86.761,4.42647026]
[1773248721745,1.093472,86.844,86.761,4.42647026]
[1773248722646,1.11829166,86.827,86.761,4.42647026]
[1773248723350,10.367,86.801,86.761,4.42647026]
[1773248723756,1.11829166,86.827,86.761,4.42647026]
[1773248723956,10.366,86.809,86.763,4.42647026]
[1773248724444,1.11829166,86.827,86.763,4.42647026]
[1773248725348,10.366,86.809,86.763,4.42647026]
[1773248725945,10.366,86.809,86.765,10.371]
[1773248726142,10.366,86.809,86.766,4.42647026]
[1773248726849,10.366,86.809,86.743,284.70587851]
[1773248726850,1.18820741,86.809,86.743,289.13234877]
[1773248727049,1.18820741,86.809,86.726,4.42647026]
[1773248727254,1.20217223,86.799,86.726,4.42647026]
[1773248727455,10.37,86.771,86.726,4.42647026]
[1773248728361,1.21609025,86.782,86.726,4.42647026]
[1773248728549,1.35247821,86.805,86.726,4.42647026]
[1773248728951,10.369,86.783,86.735,4.42647026]
[1773248729147,1.35247821,86.805,86.735,4.42647026]
[1773248729350,1.36614048,86.785,86.712,4.42647026]
[1773248730155,10.37,86.773,86.727,10.375]
[1773248730357,1.36614048,86.785,86.728,4.42647026]
[1773248730757,1.5357968,86.805,86.731,4.42647026]
[1773248731352,10.367,86.796,86.747,4.42647026]
[1773248734857,1.5357968,86.805,86.747,4.42647026]
[1773248734858,10.369,86.783,86.747,4.42647026]
[1773248735272,1.5357968,86.805,86.747,4.42647026]
[1773248736155,10.368,86.792,86.747,4.42647026]
[1773248736359,1.5357968,86.805,86.747,4.42647026]
[1773248737252,10.368,86.793,86.747,4.42647026]
[1773248737452,20.723,86.846,86.747,4.42647026]
[1773248737453,1.59957486,86.821,86.747,4.42647026]
[1773248737861,1.59957486,86.821,86.75,4.42647026]
[1773248738056,184.18,86.864,86.75,4.42647026]
[1773248738057,1.60002932,86.832,86.75,4.42647026]
[1773248738756,10.365,86.817,86.762,4.42647026]
[1773248740362,10.365,86.817,86.763,10.371]
[1773248740560,10.366,86.809,86.762,4.42647026]
[1773248740962,1.63819377,86.817,86.762,4.42647026]
[1773248741663,1.68092602,86.837,86.766,4.50025714]
[1773248742461,1.69262297,86.853,86.787,4.50025714]
[1773248743664,10.361,86.845,86.788,4.50025714]
[1773248743864,1.69262297,86.853,86.788,4.50025714]
[1773248744467,1.69262297,86.853,86.801,4.50025714]
[1773248746464,1.60032386,86.868,86.801,4.50025714]
[1773248747369,10.36,86.856,86.801,4.50025714]
[1773248748467,10.36,86.856,86.802,4.50025714]
[1773248749261,10.36,86.856,86.804,14.86625714]
[1773248749565,10.36,86.856,86.805,4.50025714]
[1773248750463,1.60032386,86.868,86.805,4.50025714]
[1773248750464,10.361,86.843,86.805,4.50025714]
[1773248750765,1.60032386,86.868,86.805,4.50025714]
[1773248751370,10.36,86.853,86.805,4.50025714]
[1773248752767,10.361,86.845,86.805,4.50025714]
[1773248752967,1.60032386,86.868,86.805,4.50025714]
[1773248753167,14.5,86.887,86.805,4.50025714]
[1773248753168,1.69156366,86.866,86.805,4.50025714]
[1773248753375,10.36,86.854,86.805,4.50025714]
[1773248753570,1.69156366,86.864,86.805,4.50025714]
[1773248753775,1.69156366,86.864,86.807,14.77240815]
[1773248753985,10.36,86.855,86.807,4.40640815]
[1773248754569,10.359,86.864,86.81,4.40640815]
[1773248754773,1.71065071,86.877,86.81,4.40640815]
[1773248754968,2.87698199,86.876,86.81,4.40640815]
[1773248755177,34.61,86.893,86.783,13.85286728]
[1773248755178,1.72050658,86.874,86.783,4.40640815]
[1773248755479,1.72050658,86.872,86.783,4.40640815]
[1773248755679,10.36,86.856,86.808,4.40640815]
[1773248756073,1.72074699,86.87,86.808,4.40640815]
[1773248756276,10.359,86.86,86.808,4.40640815]
[1773248756676,1.72074699,86.87,86.808,4.40640815]
[1773248756879,1.71748586,86.868,86.808,4.40640815]
[1773248757184,1.71748586,86.866,86.808,4.40640815]
[1773248757385,1.72712248,86.864,86.808,4.40640815]
[1773248758292,10.36,86.855,86.808,4.40640815]
[1773248758482,1.72712248,86.864,86.808,4.40640815]
[1773248759690,1.76906763,86.862,86.808,4.40640815]
[1773248759888,4.64653517,86.861,86.808,4.40640815]
[1773248760090,1.7783762,86.849,86.791,4.40640815]
[1773248760284,22.38351383,86.917,86.743,20.747]
[1773248760285,1.7783762,86.839,86.786,4.40640815]
[1773248760788,1.7783762,86.839,86.79,2.47405775]
[1773248760991,2.47405775,86.85,86.791,4.40640815]
[1773248760992,10.363,86.834,86.791,4.40640815]
[1773248761591,2.47405775,86.86,86.791,4.40640815]
[1773248761592,1.77248043,86.847,86.8,2.47405775]
[1773248761987,1.77248043,86.847,86.791,4.40640815]
[1773248762388,10.363,86.832,86.791,4.40640815]
[1773248762591,1.76314694,86.829,86.776,4.40640815]
[1773248762887,10.365,86.815,86.776,4.40640815]
[1773248763387,4.28957034,86.812,86.76,2.47405775]
[1773248763586,14.5,86.846,86.74,2.47405775]
[1773248763587,2.47405775,86.8,86.74,2.47405775]
[1773248763886,4.28957034,86.799,86.74,2.47405775]
[1773248764192,4.28957034,86.799,86.75,2.47405775]
[1773248764387,4.28957034,86.817,86.76,2.47405775]
[1773248764582,4.28957034,86.812,86.76,2.47405775]
[1773248765490,34.61,86.854,86.707,285.88061132]
[1773248765491,10.367,86.796,86.751,4.40640815]
[1773248765687,4.28957034,86.836,86.751,4.40640815]
[1773248765883,20.714,86.882,86.75,6.19288505]
[1773248765884,14.5,86.861,86.778,4.40640815]
[1773248766086,4.28957034,86.859,86.778,4.40640815]
[1773248766383,4.28957034,86.839,86.778,4.40640815]
[1773248767093,10.362,86.843,86.79,4.40640815]
[1773248767392,4.28957034,86.855,86.79,4.40640815]
[1773248767583,2.87774916,86.854,86.79,4.40640815]
[1773248767790,2.87774916,86.853,86.79,4.40640815]
[1773248767990,4.28957034,86.855,86.79,4.40640815]
[1773248768289,2.87770374,86.854,86.79,4.40640815]
[1773248768496,10.362,86.835,86.79,4.40640815]
[1773248769193,10.362,86.835,86.789,10.368]
[1773248769194,10.361,86.848,86.796,4.40640815]
[1773248769395,4.28957034,86.855,86.796,4.40640815]
[1773248769597,4.28957034,86.853,86.796,4.40640815]
[1773248769893,10.364,86.826,86.78,4.40640815]
[1773248771191,4.28957034,86.837,86.78,4.40640815]
[1773248771391,4.28957034,86.837,86.75,13.85286728]
[1773248771595,4.28957034,86.837,86.737,20.77252051]
[1773248771596,4.28957034,86.835,86.764,4.40640815]
[1773248771896,49.11,86.847,86.733,4.40640815]
[1773248771897,10.367,86.799,86.733,4.40640815]
[1773248772091,4.28957034,86.817,86.748,4.40640815]
[1773248772795,10.367,86.8,86.751,14.77840815]
[1773248773394,10.367,86.8,86.752,4.40640815]
[1773248774296,4.28957034,86.815,86.752,4.40640815]
[1773248774700,10.367,86.794,86.752,4.40640815]
[1773248775308,4.28957034,86.815,86.761,4.40640815]
[1773248775500,4.28957034,86.813,86.761,4.40640815]
[1773248777001,10.367,86.799,86.761,4.40640815]
[1773248777198,4.28957034,86.833,86.761,4.40640815]
[1773248777402,10.366,86.809,86.761,4.40640815]
[1773248777905,34.61,86.839,86.761,4.40640815]
[1773248777906,4.28957034,86.828,86.761,4.40640815]
[1773248778104,10.365,86.81,86.763,4.40640815]
[1773248778604,4.28957034,86.826,86.763,4.40640815]
[1773248778804,4.28957034,86.824,86.763,4.40640815]
[1773248778999,34.61,86.846,86.73,6.19288505]
[1773248779000,4.28957034,86.822,86.745,4.40640815]
[1773248779202,4.28957034,86.82,86.745,4.40640815]
[1773248779400,4.28957034,86.818,86.745,4.40640815]
[1773248779696,10.367,86.795,86.747,10.373]
[1773248779897,4.7840726,86.803,86.745,4.40640815]
[1773248780400,10.367,86.795,86.747,4.59744253]
[1773248780797,10.368,86.787,86.747,4.59744253]
[1773248782700,4.7840726,86.803,86.734,13.85286728]
[1773248782910,4.7840726,86.801,86.73,4.59744253]
[1773248783195,4.7840726,86.799,86.73,4.59744253]
[1773248783396,4.7840726,86.797,86.73,4.59744253]
[1773248783705,4.7840726,86.795,86.73,4.59744253]
[1773248783909,4.7840726,86.793,86.73,4.59744253]
[1773248784205,4.7840726,86.791,86.73,4.59744253]
[1773248784405,10.37,86.774,86.73,4.59744253]
[1773248784907,4.7840726,86.777,86.712,18.45030981]
[1773248785109,4.7840726,86.777,86.712,4.59744253]
[1773248785610,4.7840726,86.797,86.726,4.59744253]
[1773248785808,4.7840726,86.795,86.726,4.59744253]
[1773248786307,10.369,86.78,86.733,10.375]
[1773248786505,4.7840726,86.795,86.726,4.59744253]
[1773248787500,4.7840726,86.78,86.726,4.59744253]
[1773248788112,10.37,86.771,86.726,4.59744253]
[1773248789506,4.7840726,86.796,86.729,4.59744253]
[1773248790505,4.7840726,86.796,86.737,4.59744253]
[1773248791508,4.7840726,86.796,86.752,10.372]
[1773248792612,10.367,86.794,86.745,10.373]
[1773248794906,10.368,86.788,86.745,10.373]
[1773248795106,10.368,86.788,86.739,4.59744253]
[1773248795503,4.7840726,86.796,86.739,4.59744253]
[1773248795504,10.369,86.782,86.739,4.59744253]
[1773248795812,4.7840726,86.796,86.734,10.374]
[1773248796008,4.7840726,86.796,86.722,4.59744253]
[1773248796216,4.7840726,86.781,86.722,4.59744253]
[1773248798010,10.372,86.757,86.708,4.59744253]
[1773248798210,4.7840726,86.756,86.708,4.59744253]
[1773248799412,4.7840726,86.784,86.708,4.59744253]
[1773248799808,10.371,86.763,86.716,4.59744253]
[1773248800114,4.7840726,86.762,86.716,4.59744253]
[1773248802119,10.373,86.747,86.707,285.88061132]
[1773248802515,4.7840726,86.762,86.708,4.87107266]
[1773248802819,10.372,86.755,86.708,4.87107266]
[1773248803317,6.19357723,86.79,86.707,285.88061132]
[1773248803318,4.73661653,86.78,86.716,4.87107266]
[1773248803528,4.73661653,86.78,86.717,4.87107266]
[1773248804318,10.37,86.776,86.73,4.87107266]
[1773248804521,34.61,86.806,86.73,4.87107266]
[1773248804522,4.73661653,86.795,86.73,4.87107266]
[1773248805512,10.37,86.776,86.734,10.374]
[1773248805717,10.37,86.776,86.73,4.87107266]
[1773248805912,10.37,86.77,86.73,4.87107266]
[1773248806419,4.73661653,86.795,86.73,4.87107266]
[1773248807021,10.368,86.787,86.744,10.373]
[1773248807223,10.368,86.787,86.73,4.87107266]
[1773248807918,10.369,86.781,86.73,4.87107266]
[1773248808115,10.369,86.781,86.738,10.374]
[1773248809219,10.37,86.774,86.731,4.87107266]
[1773248809419,4.73661653,86.795,86.731,4.87107266]
[1773248810221,10.37,86.775,86.734,10.374]
[1773248810421,4.93641222,86.782,86.731,4.87107266]
[1773248810824,4.93641222,86.782,86.738,10.374]
[1773248812428,10.369,86.781,86.738,10.374]
[1773248812829,4.93641222,86.78,86.72,4.64741479]
[1773248813327,4.93641222,86.778,86.72,4.64741479]
[1773248814431,10.371,86.764,86.721,10.376]
[1773248815731,10.371,86.764,86.726,10.375]
[1773248816235,4.93641222,86.777,86.722,4.64741479]
[1773248817223,4.93641222,86.791,86.722,4.64741479]
[1773248817429,4.93641222,86.789,86.722,4.64741479]
[1773248817730,4.93641222,86.787,86.722,4.64741479]
[1773248817931,10.37,86.776,86.732,10.375]
[1773248818131,4.93641222,86.785,86.722,4.64741479]
[1773248819336,10.37,86.77,86.725,10.376]
[1773248819533,4.93641222,86.785,86.725,10.376]
[1773248819733,14.52,86.797,86.725,10.376]
[1773248819734,4.93641222,86.783,86.725,10.376]
[1773248819933,4.93641222,86.781,86.725,10.376]
[1773248820139,10.37,86.77,86.725,10.376]
[1773248820330,4.93641222,86.781,86.733,10.375]
[1773248821327,10.37,86.772,86.733,10.375]
[1773248821634,4.93641222,86.781,86.727,4.64741479]
[1773248821836,4.93641222,86.796,86.727,4.64741479]
[1773248822136,4.93641222,86.794,86.727,4.64741479]
[1773248822331,4.93641222,86.81,86.736,4.64741479]
[1773248822631,4.93641222,86.808,86.723,4.64741479]
[1773248822828,4.93641222,86.772,86.729,13.85286728]
[1773248823034,4.93641222,86.772,86.723,13.85286728]
[1773248823230,4.93641222,86.772,86.712,13.85286728]
[1773248823429,4.93641222,86.77,86.712,13.85286728]
[1773248823626,10.372,86.753,86.712,13.85286728]
[1773248823831,4.93641222,86.77,86.712,13.85286728]
[1773248825535,10.373,86.747,86.712,13.85286728]
[1773248826439,10.374,86.741,86.712,13.85286728]
[1773248826633,10.374,86.741,86.713,13.85286728]
[1773248826837,10.374,86.741,86.708,13.85286728]
[1773248827439,4.93641222,86.756,86.708,13.85286728]
[1773248828535,10.373,86.749,86.708,13.85286728]
[1773248829935,10.373,86.749,86.712,13.85286728]
[1773248830136,10.373,86.749,86.711,13.85286728]
[1773248830843,4.93641222,86.773,86.721,4.64741479]
[1773248831140,4.93641222,86.773,86.725,4.64741479]
[1773248831335,4.93641222,86.769,86.72,14.52]
[1773248831539,4.93641222,86.769,86.711,18.50028207]
[1773248831934,4.93641222,86.769,86.72,2.47986262]
[1773248832238,4.93641222,86.769,86.721,4.64741479]
[1773248832441,4.93641222,86.769,86.725,13.85286728]
[1773248832637,4.93641222,86.783,86.73,2.47986262]
[1773248832841,4.93641222,86.783,86.74,7.12727741]
[1773248833037,4.93641222,86.783,86.74,4.64741479]
[1773248833342,10.371,86.767,86.725,24.896]
[1773248833531,10.371,86.767,86.724,19.16741479]
[1773248834037,10.37,86.774,86.73,2.47986262]
[1773248834237,10.37,86.774,86.741,4.64741479]
[1773248834741,4.93641222,86.783,86.741,4.64741479]
[1773248835240,4.93641222,86.798,86.741,4.64741479]
[1773248835439,4.93641222,86.796,86.741,4.64741479]
[1773248835639,2.87963865,86.795,86.741,4.64741479]
[1773248835840,2.87963865,86.794,86.741,4.64741479]
[1773248836037,4.93641222,86.792,86.741,4.64741479]
[1773248836235,2.87963865,86.791,86.741,4.64741479]
[1773248836436,2.87963865,86.79,86.741,4.64741479]
[1773248836637,2.87963865,86.789,86.741,4.64741479]
[1773248836838,2.87963865,86.788,86.741,4.64741479]
[1773248837033,2.87963865,86.787,86.741,4.64741479]
[1773248837238,2.87963865,86.786,86.741,4.64741479]
[1773248837439,10.369,86.779,86.741,4.64741479]
[1773248838038,10.368,86.786,86.741,4.64741479]
[1773248838243,10.368,86.786,86.75,2.47986262]
[1773248838645,10.368,86.793,86.75,2.47986262]
[1773248838946,2.87931078,86.792,86.75,2.47986262]
[1773248839142,2.87931078,86.792,86.726,20.77252051]
[1773248839143,4.93641222,86.807,86.761,4.64741479]
[1773248839342,2.87897929,86.806,86.761,4.64741479]
[1773248839639,2.87897929,86.805,86.761,4.64741479]
[1773248839837,2.87897929,86.804,86.761,4.64741479]
[1773248840043,2.87897929,86.803,86.761,4.64741479]
[1773248840240,4.93641222,86.807,86.761,4.64741479]
[1773248840444,10.367,86.795,86.761,4.64741479]
[1773248841344,4.97938212,86.799,86.747,4.70759039]
[1773248841548,4.97938212,86.797,86.747,4.70759039]
[1773248841748,10.368,86.787,86.747,4.70759039]
[1773248842547,10.369,86.781,86.747,4.70759039]
[1773248842746,4.97938212,86.795,86.747,4.70759039]
[1773248842946,4.97938212,86.793,86.747,4.70759039]
[1773248843145,2.87950306,86.792,86.747,4.70759039]
[1773248843346,2.87950306,86.791,86.75,2.476805]
[1773248843546,4.97938212,86.793,86.75,2.476805]
[1773248843750,2.87930904,86.792,86.75,2.476805]
[1773248843945,2.87930904,86.791,86.75,2.476805]
[1773248844151,4.97938212,86.793,86.75,2.476805]
[1773248844452,10.368,86.79,86.75,2.476805]
[1773248844750,4.97938212,86.793,86.75,2.476805]
[1773248844950,10.368,86.786,86.75,2.476805]
[1773248845141,10.368,86.786,86.747,4.70759039]
[1773248845555,4.97938212,86.793,86.76,2.476805]
[1773248845751,2.87930943,86.792,86.751,4.70759039]
[1773248845945,4.97938212,86.793,86.751,4.70759039]
[1773248846149,2.87930943,86.792,86.751,4.70759039]
[1773248846352,4.97938212,86.793,86.751,4.70759039]
[1773248846550,2.87930943,86.792,86.751,4.70759039]
[1773248846750,4.97938212,86.793,86.751,4.70759039]
[1773248846947,10.369,86.784,86.751,4.70759039]
[1773248847143,10.369,86.784,86.734,14.52]
[1773248847144,4.97938212,86.793,86.734,14.52]
[1773248847348,10.37,86.776,86.74,2.476805]
[1773248847753,4.97938212,86.791,86.74,2.476805]
[1773248848050,2.8797912,86.79,86.741,4.70759039]
[1773248848253,4.97938212,86.791,86.741,4.70759039]
[1773248848254,10.37,86.776,86.741,4.70759039]
[1773248849452,4.97938212,86.806,86.76,2.476805]
[1773248849641,4.97938212,86.804,86.76,2.476805]
[1773248849950,4.97938212,86.802,86.751,4.70759039]
[1773248850151,10.368,86.788,86.751,4.70759039]
[1773248850349,2.87940194,86.787,86.751,4.70759039]
[1773248850548,2.87940194,86.786,86.751,4.70759039]
[1773248850749,2.87940194,86.785,86.751,4.70759039]
[1773248850951,2.87940194,86.784,86.751,4.70759039]
[1773248851152,4.97938212,86.8,86.751,4.70759039]
[1773248851153,2.87940194,86.783,86.751,4.70759039]
[1773248851349,10.369,86.781,86.751,4.70759039]
[1773248852347,10.369,86.781,86.726,13.85286728]
[1773248852348,4.97938212,86.78,86.726,13.85286728]
[1773248852547,34.61,86.803,86.681,20.762]
[1773248852548,4.97938212,86.769,86.713,18.56045767]
[1773248852758,4.97938212,86.767,86.713,4.70759039]
[1773248853051,4.97938212,86.767,86.686,20.77252051]
[1773248853052,10.375,86.728,86.707,268.03461132]
[1773248853850,10.374,86.738,86.707,268.03461132]
[1773248854048,4.97938212,86.745,86.707,268.03461132]
[1773248854552,4.97938212,86.745,86.707,233.02561132]
[1773248854850,4.97938212,86.739,86.682,4.70759039]
[1773248855052,4.97938212,86.737,86.682,4.70759039]
[1773248855249,4.97938212,86.735,86.682,4.70759039]
[1773248856446,10.376,86.723,86.682,4.70759039]
[1773248859958,10.377,86.716,86.682,4.70759039]
[1773248860358,10.377,86.716,86.68,2.476805]
[1773248860961,4.97938212,86.721,86.68,2.476805]
[1773248861260,4.97938212,86.721,86.671,4.96781998]
[1773248861862,4.97938212,86.721,86.67,2.476805]
[1773248863361,2.88140053,86.741,86.691,4.96781998]
[1773248863557,5.07066516,86.753,86.7,2.476805]
[1773248864060,5.07066516,86.74,86.691,4.96781998]
[1773248864456,10.376,86.719,86.691,4.96781998]
[1773248864657,5.07066516,86.74,86.691,4.96781998]
[1773248865171,10.377,86.714,86.673,4.96781998]
[1773248865366,5.07066516,86.709,86.658,4.96781998]
[1773248865560,5.07066516,86.709,86.66,2.476805]
[1773248866170,5.07066516,86.709,86.65,2.476805]
[1773248866368,10.379,86.695,86.651,4.96781998]
[1773248866574,10.379,86.695,86.66,2.476805]
[1773248866968,10.378,86.704,86.66,2.476805]
[1773248867771,5.07066516,86.709,86.67,2.476805]
[1773248867975,10.377,86.713,86.68,2.476805]
[1773248868175,5.07066516,86.742,86.69,2.476805]
[1773248869475,10.375,86.728,86.69,2.476805]
[1773248871974,14.52,86.754,86.67,7.57791733]
[1773248871975,4.99438004,86.739,86.67,7.57791733]
[1773248872177,4.99438004,86.739,86.68,2.476805]
[1773248873066,10.377,86.712,86.67,5.10111233]
[1773248873271,4.99438004,86.725,86.671,5.10111233]
[1773248873674,4.99438004,86.725,86.68,2.476805]
[1773248874069,2.476805,86.74,86.68,2.476805]
[1773248874070,10.376,86.724,86.681,5.10111233]
[1773248875878,7.47118504,86.74,86.681,5.10111233]
[1773248875879,10.375,86.732,86.681,5.10111233]
[1773248876884,10.375,86.732,86.69,2.476805]
[1773248878782,4.99438004,86.718,86.67,2.476805]
[1773248879177,4.99438004,86.718,86.667,15.48311233]
[1773248879381,4.99438004,86.718,86.67,2.476805]
[1773248879581,4.99438004,86.739,86.68,2.476805]
[1773248879783,4.99438004,86.739,86.69,2.476805]
[1773248880085,4.99438004,86.739,86.691,5.10111233]
[1773248880880,14.52,86.751,86.701,5.10111233]
[1773248881087,19.51438004,86.751,86.701,5.10111233]
[1773248881287,4.99438004,86.751,86.701,5.10111233]
[1773248881784,4.99438004,86.751,86.702,10.378]
[1773248881984,4.99438004,86.751,86.703,5.10111233]
[1773248883791,4.99438004,86.749,86.693,5.10111233]
[1773248883986,4.99438004,86.749,86.69,2.476805]
[1773248884286,4.99438004,86.749,86.691,5.10111233]
[1773248884483,10.374,86.737,86.7,2.476805]
[1773248884881,10.373,86.745,86.701,5.10111233]
[1773248885093,10.373,86.745,86.71,2.476805]
[1773248885291,10.373,86.745,86.711,5.10111233]
[1773248887191,10.372,86.752,86.711,5.10111233]
[1773248888886,4.99438004,86.78,86.73,2.476805]
[1773248890493,10.37,86.769,86.73,2.476805]
[1773248891600,10.369,86.778,86.731,15.47611233]
[1773248891790,19.51438004,86.793,86.74,7.57791733]
[1773248891992,19.51438004,86.793,86.741,5.10111233]
[1773248892392,4.99438004,86.793,86.741,5.10111233]
[1773248893498,10.368,86.787,86.741,15.47511233]
[1773248894695,10.368,86.787,86.742,5.10111233]
[1773248895900,10.369,86.781,86.742,5.10111233]
[1773248896897,10.369,86.781,86.74,2.476805]
[1773248896898,4.99438004,86.779,86.721,5.10111233]
[1773248897093,4.99438004,86.779,86.731,5.10111233]
[1773248898005,4.99438004,86.779,86.72,2.476805]
[1773248898604,10.371,86.767,86.72,12.852805]
[1773248898912,10.371,86.767,86.72,17.95391733]
[1773248899504,4.99438004,86.779,86.72,17.95391733]
[1773248899906,4.99438004,86.779,86.722,10.376]
[1773248900203,4.99438004,86.779,86.707,5.19333691]
[1773248900407,2.476805,86.76,86.701,5.19333691]
[1773248900608,4.70771594,86.759,86.701,5.19333691]
[1773248901606,4.70771594,86.749,86.69,2.48042569]
[1773248901801,4.70771594,86.749,86.694,5.19333691]
[1773248902000,4.70771594,86.749,86.7,2.48042569]
[1773248903601,4.70771594,86.749,86.694,5.19333691]
[1773248905611,10.374,86.739,86.694,5.19333691]
[1773248905815,10.374,86.739,86.7,2.48042569]
[1773248906005,10.374,86.739,86.701,5.19333691]
[1773248915221,4.70771594,86.749,86.701,5.19333691]
[1773248915826,4.70771594,86.749,86.71,2.48042569]
[1773248916327,10.373,86.748,86.71,2.48042569]
[1773248916626,10.373,86.748,86.71,7.6737626]
[1773248916822,4.70771594,86.763,86.72,2.48042569]
[1773248917131,4.70771594,86.763,86.711,5.19333691]
[1773248917132,4.70771594,86.759,86.711,5.19333691]
[1773248917323,4.70771594,86.759,86.705,14.52]
[1773248917623,4.70771594,86.78,86.73,2.48042569]
[1773248917826,4.70771594,86.769,86.721,5.19333691]
[1773248919432,10.372,86.756,86.721,5.19333691]
[1773248919627,4.70771594,86.769,86.721,5.19333691]
[1773248920427,10.371,86.761,86.721,5.19333691]
[1773248920626,5.11657739,86.783,86.741,5.1953776]
[1773248921025,10.369,86.779,86.741,5.1953776]
[1773248921332,5.11657739,86.783,86.75,2.48042569]
[1773248921630,5.11657739,86.783,86.741,5.1953776]
[1773248922127,2.8795986,86.795,86.75,2.48042569]
[1773248922327,5.11657739,86.8,86.75,7.67580329]
[1773248922630,2.8795516,86.799,86.76,2.48042569]
[1773248922824,10.368,86.79,86.75,7.67580329]
[1773248923929,10.368,86.787,86.75,5.1953776]
[1773248924622,10.369,86.78,86.74,2.48042569]
[1773248924821,5.11657739,86.789,86.74,2.48042569]
[1773248925932,5.11657739,86.789,86.738,5.1953776]
[1773248926432,10.37,86.775,86.738,5.1953776]
[1773248926933,10.37,86.775,86.74,2.48042569]
[1773248927131,10.369,86.782,86.74,7.67580329]
[1773248927633,10.369,86.782,86.741,5.1953776]
[1773248928930,15.48457739,86.789,86.75,2.48042569]
[1773248930736,10.369,86.782,86.75,2.48042569]
[1773248930939,10.369,86.782,86.743,10.373]
[1773248932338,10.369,86.782,86.744,5.00193857]
[1773248932538,15.48457739,86.789,86.75,2.48042569]
[1773248933044,5.11657739,86.789,86.744,5.00193857]
[1773248934141,10.368,86.788,86.744,5.00193857]
[1773248934745,10.368,86.788,86.746,10.373]
[1773248934946,10.368,86.788,86.75,2.48042569]
[1773248935743,15.39182978,86.786,86.746,10.373]
[1773248936348,15.39182978,86.786,86.744,5.00193857]
[1773248936749,10.368,86.793,86.751,5.00193857]
[1773248937250,5.02382978,86.799,86.751,5.00193857]
[1773248937449,5.02382978,86.78,86.74,2.48042569]
[1773248937752,5.02382978,86.78,86.741,5.00193857]
[1773248938147,5.02382978,86.78,86.742,5.00193857]
[1773248938744,5.02382978,86.78,86.743,10.373]
[1773248940447,5.02382978,86.776,86.731,5.00193857]
[1773248941045,5.02382978,86.794,86.741,5.00193857]
[1773248942354,10.369,86.782,86.741,5.00193857]
[1773248943250,10.369,86.782,86.742,10.373]
[1773248943452,15.39282978,86.782,86.742,10.373]
[1773248944448,15.39282978,86.782,86.742,15.37493857]
[1773248944648,5.02382978,86.782,86.75,10.373]
[1773248944849,5.02382978,86.782,86.742,5.00193857]
[1773248944850,5.02382978,86.799,86.761,5.00193857]
[1773248945156,5.02382978,86.816,86.761,5.00193857]
[1773248945355,5.02382978,86.812,86.761,5.00193857]
[1773248946554,5.02382978,86.809,86.761,5.00193857]
[1773248948358,10.366,86.808,86.763,5.00193857]
[1773248948660,5.02382978,86.807,86.763,5.00193857]
[1773248949460,15.38982978,86.806,86.764,10.371]
[1773248950055,5.02382978,86.806,86.764,15.37293857]
[1773248950358,5.02382978,86.806,86.748,5.00193857]
[1773248950556,5.02382978,86.806,86.751,5.00193857]
[1773248951359,5.02382978,86.803,86.758,10.372]
[1773248951757,5.02382978,86.789,86.737,5.00193857]
[1773248953359,10.369,86.777,86.737,5.00193857]
[1773248953756,5.02382978,86.789,86.737,5.00193857]
[1773248953965,5.02382978,86.789,86.741,5.00193857]
[1773248954160,10.368,86.788,86.748,10.373]
[1773248954563,10.368,86.788,86.741,15.37593857]
[1773248954760,10.368,86.788,86.742,5.00193857]
[1773248955061,5.02382978,86.782,86.742,5.00193857]
[1773248956361,10.369,86.777,86.742,5.00193857]
[1773248959063,10.371,86.763,86.729,5.00193857]
[1773248960467,4.8411198,86.784,86.734,4.78839289]
[1773248960666,4.8411198,86.782,86.734,4.78839289]
[1773248960867,2.879797,86.781,86.734,4.78839289]
[1773248961068,2.879797,86.78,86.734,4.78839289]
[1773248961271,10.37,86.771,86.734,4.78839289]
[1773248962766,10.37,86.771,86.737,13.97209177]